bitfinex/quotes_ETHUSD_20240702
["timestamp","ask_amount","ask_price","bid_price","bid_amount"]
[1719918497777,2.89511,3454.1,3453.5,0.824]
[1719918498094,2.89511,3454.1,3453.6,0.09040998]
[1719918500300,0.3026163,3454.0,3453.6,0.09040998]
[1719918503273,0.3026163,3454.0,3453.6,0.67040998]
[1719918504816,2.3553,3453.9,3453.6,0.67040998]
[1719918510615,5.25059,3453.9,3453.6,0.67040998]
[1719918510771,6.09543163,3453.9,3453.6,0.67040998]
[1719918513171,2.89537,3453.8,3453.6,0.67040998]
[1719918513617,2.89544,3453.7,3453.6,0.67040998]
[1719918513808,5.23234,3453.7,3453.6,0.67040998]
[1719918513985,5.23234,3453.7,3453.6,0.58]
[1719918514306,6.15985679,3453.7,3453.6,0.58]
[1719918516013,6.15985679,3453.7,3453.6,0.67057918]
[1719918519406,5.23234,3453.7,3453.6,0.67057918]
[1719918522433,6.05634,3453.7,3453.6,0.58]
[1719918523003,5.23234,3453.7,3453.6,0.58]
[1719918523222,8.12778,3453.7,3453.6,0.58]
[1719918523390,9.05321963,3453.7,3453.6,0.58]
[1719918528330,9.87721963,3453.7,3453.6,0.58]
[1719918531551,9.05321963,3453.7,3453.6,0.58]
[1719918531843,8.12778,3453.7,3453.6,0.58]
[1719918533337,5.79088,3453.7,3453.6,0.58]
[1719918538981,5.79088,3453.7,3453.6,0.67071294]
[1719918556825,6.34088,3453.7,3453.6,0.67071294]
[1719918559209,6.34088,3453.7,3453.6,0.58]
[1719918560005,7.61229963,3453.7,3453.6,0.67086697]
[1719918560389,7.61229963,3453.7,3453.6,0.58]
[1719918570664,10.10819963,3453.7,3453.6,0.58]
[1719918572163,10.93219963,3453.7,3453.6,0.58]
[1719918575043,10.10819963,3453.7,3453.6,0.58]
[1719918583940,7.61229963,3453.7,3453.6,0.58]
[1719918595303,0.3026163,3454.0,3453.6,0.58]
[1719918595499,0.3026163,3454.0,3453.6,2.8408]
[1719918595500,2.89529,3453.9,3453.6,2.8408]
[1719918595705,2.89529,3453.9,3453.7,0.09085877]
[1719918596865,0.55,3453.8,3453.7,0.09085877]
[1719918600064,0.3026163,3454.0,3453.7,0.09085877]
[1719918600260,0.3026163,3454.0,3453.8,2.3226]
[1719918600698,0.3026163,3454.0,3453.9,0.09080964]
[1719918600883,0.8526163,3454.0,3453.9,0.09080964]
[1719918608519,0.8526163,3454.0,3453.6,2.8541]
[1719918609038,0.8526163,3454.0,3453.7,0.09080964]
[1719918620037,0.3026163,3454.0,3453.7,0.09080964]
[1719918653379,0.3026163,3454.0,3453.9,3.71927]
[1719918653577,2.2679,3454.7,3453.9,3.71927]
[1719918653888,0.3025677,3454.5,3453.9,3.81003324]
[1719918660117,0.55,3454.4,3453.9,0.09076324]
[1719918660366,2.4203,3454.3,3453.9,0.09076324]
[1719918660620,2.4203,3454.3,3453.7,2.89538]
[1719918660621,2.4203,3454.3,3453.7,2.89537]
[1719918660785,2.4203,3454.3,3454.0,0.09065949]
[1719918660981,2.4203,3454.3,3453.7,2.89537]
[1719918661182,2.4203,3454.3,3453.8,0.08763751]
[1719918661378,2.4203,3454.3,3453.7,2.89537]
[1719918661641,2.4203,3454.3,3453.8,0.08763751]
[1719918661847,2.4203,3454.3,3453.7,2.89537]
[1719918662032,2.4203,3454.3,3453.9,0.08763751]
[1719918662202,2.4203,3454.3,3453.7,2.89537]
[1719918662403,2.4203,3454.3,3453.8,0.08763751]
[1719918662703,2.4203,3454.3,3453.7,2.89537]
[1719918662931,2.4203,3454.3,3453.9,0.08763751]
[1719918663140,2.4203,3454.3,3453.7,2.89537]
[1719918663605,2.4203,3454.3,3453.8,0.08763751]
[1719918663805,2.4203,3454.3,3453.7,2.89537]
[1719918664041,2.4203,3454.3,3453.8,0.08763751]
[1719918664241,2.4203,3454.3,3453.7,2.89537]
[1719918664403,2.4203,3454.3,3453.9,0.08763751]
[1719918664605,2.4203,3454.3,3453.7,2.89537]
[1719918664920,2.4203,3454.3,3453.8,0.08763751]
[1719918665309,2.4203,3454.3,3453.7,2.89537]
[1719918665629,2.4203,3454.3,3453.8,0.08758291]
[1719918665839,2.4203,3454.3,3453.7,2.89537]
[1719918666141,2.4203,3454.3,3453.9,0.08758291]
[1719918666342,2.4203,3454.3,3453.7,2.89537]
[1719918666548,2.4203,3454.3,3454.0,0.08758291]
[1719918666759,3.99842177,3454.3,3453.6,4.29952]
[1719918666905,2.4203,3454.3,3454.1,0.08758291]
[1719918667113,2.4203,3454.3,3453.6,4.29952]
[1719918667306,2.4203,3454.3,3454.2,0.08758291]
[1719918667512,2.4203,3454.3,3453.6,4.29952]
[1719918667711,2.4203,3454.3,3454.2,0.08758291]
[1719918667959,3.70894377,3454.3,3453.6,4.29952]
[1719918668136,2.4203,3454.3,3454.2,0.08758291]
[1719918668348,2.4203,3454.3,3453.6,4.29952]
[1719918668861,2.4203,3454.3,3453.7,0.08758291]
[1719918669411,2.4203,3454.3,3453.8,0.824]
[1719918669816,2.4203,3454.3,3453.9,0.08758291]
[1719918670550,0.55,3454.4,3453.9,0.08758291]
[1719918679560,1.76255577,3454.4,3453.9,0.08758291]
[1719918679755,1.76255577,3454.4,3453.7,0.824]
[1719918679949,1.76255577,3454.4,3454.0,0.08754198]
[1719918680130,1.76255577,3454.4,3453.7,0.824]
[1719918680328,1.76255577,3454.4,3454.1,0.08754198]
[1719918680663,1.41621135,3454.3,3454.2,0.08754198]
[1719918680829,0.55,3454.4,3453.7,3.71944]
[1719918681028,3.44485,3454.4,3453.8,0.08754198]
[1719918681554,2.89511,3454.1,3453.8,0.08754198]
[1719918681775,2.4751,3454.0,3453.8,0.08754198]
[1719918681972,2.4751,3454.0,3453.6,0.58]
[1719918682264,2.7776199,3454.0,3453.6,0.58]
[1719918682468,2.7776199,3454.0,3453.7,0.08748192]
[1719918687669,2.7776199,3454.0,3453.7,0.08748192]
[1719918690966,0.3025199,3454.0,3453.7,0.08748192]
[1719918691171,0.3025199,3454.0,3453.7,0.91148192]
[1719918696053,0.3025199,3454.0,3453.7,0.08748192]
[1719918696654,0.3025199,3454.0,3453.7,3.18838192]
[1719918696958,0.3025199,3454.0,3453.7,4.14434111]
[1719918698352,0.3025199,3454.0,3453.7,2.36438192]
[1719918701489,0.3025199,3454.0,3453.7,0.08748192]
[1719918711795,3.1977199,3454.0,3453.7,0.08748192]
[1719918723285,2.89529,3453.9,3453.7,0.08748192]
[1719918730830,2.89536,3453.8,3453.7,0.08748192]
[1719918732223,8.27242,3453.8,3453.7,0.08748192]
[1719918732427,8.82242,3453.8,3453.7,0.08748192]
[1719918732591,5.79088,3453.7,3453.6,0.58]
[1719918732792,6.34088,3453.7,3453.6,0.58]
[1719918733041,7.45478319,3453.7,3453.6,0.58]
[1719918737727,7.45478319,3453.7,3453.6,0.66750646]
[1719918738240,7.45478319,3453.7,3453.6,0.66601011]
[1719918739795,6.90478319,3453.7,3453.6,0.66601011]
[1719918740252,7.45478319,3453.7,3453.6,0.66601011]
[1719918745756,10.64318319,3453.7,3453.6,0.66601011]
[1719918745967,10.64318319,3453.7,3453.6,0.57850365]
[1719918748465,13.53862319,3453.7,3453.6,0.57850365]
[1719918748816,16.53862319,3453.7,3453.6,0.57850365]
[1719918767344,19.43406319,3453.7,3453.6,0.57850365]
[1719918792424,19.43406319,3453.7,3453.6,0.55050365]
[1719918799219,22.32950319,3453.7,3453.6,0.55050365]
[1719918799612,26.32950319,3453.7,3453.6,0.55050365]
[1719918807053,26.32950319,3453.7,3453.6,3.65e-06]
[1719918811865,22.32950319,3453.7,3453.6,3.65e-06]
[1719918815062,26.32950319,3453.7,3453.6,3.65e-06]
[1719918816547,22.32950319,3453.7,3453.6,3.65e-06]
[1719918819441,26.32950319,3453.7,3453.6,3.65e-06]
[1719918822676,27.33298987,3453.7,3453.6,3.65e-06]
[1719918822988,26.32950319,3453.7,3453.6,3.65e-06]
[1719918829487,29.38350319,3453.7,3453.6,3.65e-06]
[1719918829662,30.38700852,3453.7,3453.6,3.65e-06]
[1719918832103,30.38702168,3453.7,3453.6,3.65e-06]
[1719918832580,30.38702153,3453.7,3453.6,3.65e-06]
[1719918833481,21.98885,3453.4,3453.3,3.65e-06]
[1719918833686,22.81285,3453.4,3453.3,3.65e-06]
[1719918833885,23.36285,3453.4,3453.3,3.65e-06]
[1719918834084,26.66476085,3453.4,3453.3,3.65e-06]
[1719918834575,31.66827919,3453.4,3453.3,3.65e-06]
[1719918834775,34.1426152,3453.4,3453.3,3.65e-06]
[1719918835277,34.14268416,3453.4,3453.3,3.65e-06]
[1719918838491,33.13909686,3453.4,3453.3,3.65e-06]
[1719918838691,34.1426834,3453.4,3453.3,3.65e-06]
[1719918839917,31.6862834,3453.4,3453.3,3.65e-06]
[1719918840208,31.68625918,3453.4,3453.3,3.65e-06]
[1719918841139,31.68626189,3453.4,3453.3,3.65e-06]
[1719918841509,30.68626189,3453.4,3453.3,3.65e-06]
[1719918842799,31.68626189,3453.4,3453.3,3.65e-06]
[1719918844231,28.63226189,3453.4,3453.3,3.65e-06]
[1719918844445,27.62869686,3453.4,3453.3,3.65e-06]
[1719918844937,28.63227737,3453.4,3453.3,3.65e-06]
[1719918845804,27.62869686,3453.4,3453.3,3.65e-06]
[1719918847701,28.63228072,3453.4,3453.3,3.65e-06]
[1719918848108,27.62869686,3453.4,3453.3,3.65e-06]
[1719918849334,23.62869686,3453.4,3453.3,3.65e-06]
[1719918852547,27.62869686,3453.4,3453.3,3.65e-06]
[1719918854427,28.63224744,3453.4,3453.3,3.65e-06]
[1719918854749,27.62869686,3453.4,3453.3,3.65e-06]
[1719918856853,23.62869686,3453.4,3453.3,3.65e-06]
[1719918859722,27.62869686,3453.4,3453.3,3.65e-06]
[1719918860973,28.63225157,3453.4,3453.3,3.65e-06]
[1719918861338,27.62869686,3453.4,3453.3,3.65e-06]
[1719918864351,28.63225167,3453.4,3453.3,3.65e-06]
[1719918864666,27.62869686,3453.4,3453.3,3.65e-06]
[1719918865774,26.80469686,3453.4,3453.3,3.65e-06]
[1719918865985,27.62869686,3453.4,3453.3,3.65e-06]
[1719918866680,26.80469686,3453.4,3453.3,3.65e-06]
[1719918867014,13.09329085,3453.4,3453.3,2.25090365]
[1719918867835,9.09329085,3453.4,3453.3,2.25090365]
[1719918869767,9.64329085,3453.4,3453.3,2.25090365]
[1719918875875,6.74760085,3453.4,3453.3,2.25090365]
[1719918876076,6.74760085,3453.4,3453.3,2.47599402]
[1719918876393,6.74760085,3453.4,3453.3,2.56095418]
[1719918876971,6.74760085,3453.4,3453.3,2.47599402]
[1719918877234,6.74760085,3453.4,3453.3,2.56095418]
[1719918880288,6.74760085,3453.4,3453.3,2.33586381]
[1719918880496,6.74760085,3453.4,3453.3,2.25090365]
[1719918885736,3.85191085,3453.4,3453.3,2.25090365]
[1719918885940,3.85191085,3453.4,3453.3,2.33588014]
[1719918898842,0.85191085,3453.4,3453.3,2.33588014]
[1719918899146,0.85191085,3453.4,3453.3,3.47586815]
[1719918899147,0.30191085,3453.4,3453.3,3.47586815]
[1719918900387,4.7552,3454.0,3453.4,2.4035]
[1719918900388,1.86,3454.0,3453.4,2.4035]
[1719918900554,0.30194217,3453.8,3453.4,2.4035]
[1719918900917,0.55,3453.7,3453.6,2.4035]
[1719918901071,0.55,3453.7,3453.6,2.76633647]
[1719918901380,0.55,3453.7,3453.6,2.85120682]
[1719918902215,0.30194217,3453.8,3453.6,2.85120682]
[1719918912966,0.30194217,3453.8,3453.7,3.2656]
[1719918913378,0.30194217,3453.8,3453.7,3.35030975]
[1719918913705,0.30194217,3453.8,3453.7,4.01117837]
[1719918914405,0.30194217,3453.8,3453.7,3.18717837]
[1719918917406,0.30194217,3453.8,3453.7,2.52630975]
[1719918923488,0.30194217,3453.8,3453.7,0.08470975]
[1719918924001,0.30194217,3453.8,3453.7,0.08471521]
[1719918924295,0.30194217,3453.8,3453.5,3.2282]
[1719918924453,0.30194217,3453.8,3453.7,0.08471521]
[1719918924655,0.30194217,3453.8,3453.5,3.2282]
[1719918925151,0.30194217,3453.8,3453.6,0.08471521]
[1719918933525,0.80765639,3453.8,3453.6,0.08471521]
[1719918933743,5.93264,3453.7,3453.6,0.08471521]
[1719918933937,5.93264,3453.7,3453.3,3.65e-06]
[1719918934085,5.93264,3453.7,3453.6,0.08460635]
[1719918934277,5.93264,3453.7,3453.3,3.65e-06]
[1719918934795,5.93264,3453.7,3453.4,0.08460635]
[1719918935111,3.44544,3453.7,3453.4,0.08460635]
[1719918937010,6.34096,3453.7,3453.4,0.08460635]
[1719918939019,2.89554,3453.6,3453.4,0.08460635]
[1719918941517,2.89561,3453.5,3453.4,0.08460635]
[1719918941679,5.91961,3453.5,3453.4,0.08460635]
[1719918941876,2.89569,3453.4,3453.3,3.65e-06]
[1719918942083,3.44569,3453.4,3453.3,3.65e-06]
[1719918942714,3.74763951,3453.4,3453.3,3.65e-06]
[1719918954319,3.74763951,3453.4,3453.3,0.08474876]
[1719918954522,3.74763951,3453.4,3453.3,3.65e-06]
[1719918954729,3.74763951,3453.4,3453.3,0.08474876]
[1719918954944,3.74763951,3453.4,3453.3,3.65e-06]
[1719918955159,3.74763951,3453.4,3453.3,0.08474876]
[1719918969480,0.85194951,3453.4,3453.3,0.08474876]
[1719918978606,0.85194951,3453.4,3453.3,0.08190817]
[1719918979634,3.74763951,3453.4,3453.3,0.08190817]
[1719918985302,4.64351946,3453.4,3453.3,3.65e-06]
[1719918987316,10.83080946,3453.4,3453.3,3.65e-06]
[1719918987620,9.93492951,3453.4,3453.3,3.65e-06]
[1719918987830,12.93492951,3453.4,3453.3,3.65e-06]
[1719918993403,15.83061951,3453.4,3453.3,3.65e-06]
[1719918994487,15.83061951,3453.4,3451.2,5.22238]
[1719918994488,2.89694,3452.0,3451.2,5.22238]
[1719918994738,2.89694,3452.0,3451.3,2.3249]
[1719918994891,2.89694,3452.0,3451.4,2.3249]
[1719918995230,0.30147864,3451.9,3451.5,0.07629294]
[1719918995524,0.30147864,3451.9,3451.7,2.3249]
[1719918995683,0.30147864,3451.9,3451.7,2.2749]
[1719918995889,0.30147864,3451.9,3451.8,0.07629294]
[1719918996092,0.30147864,3451.9,3451.7,2.2749]
[1719918996321,0.30147864,3451.9,3451.8,0.07629294]
[1719918996529,0.30147864,3451.9,3451.8,0.31751929]
[1719918996832,0.30147864,3451.9,3451.8,0.39381223]
[1719919001914,2.89656,3452.4,3451.8,0.39381223]
[1719919001915,2.89666,3452.3,3451.8,0.39381223]
[1719919002430,2.89666,3452.3,3451.9,3.20183213]
[1719919002636,2.89666,3452.3,3452.0,0.35956444]
[1719919003001,2.89666,3452.3,3452.1,0.07629294]
[1719919006945,2.89666,3452.3,3451.9,2.37783213]
[1719919007440,2.89666,3452.3,3452.0,0.07651891]
[1719919017474,2.89666,3452.3,3452.1,0.076881]
[1719919017760,2.89666,3452.3,3451.7,3.2211]
[1719919017973,2.89666,3452.3,3452.2,0.076881]
[1719919018139,2.89666,3452.3,3451.7,3.2211]
[1719919018140,6.11066433,3452.3,3451.7,3.2211]
[1719919018330,5.79335,3452.3,3452.2,0.076881]
[1719919018530,5.79335,3452.3,3451.7,3.2211]
[1719919018726,2.89666,3452.3,3452.2,0.076881]
[1719919018970,5.79335,3452.3,3451.7,3.2211]
[1719919019266,2.8967,3452.2,3451.7,3.2211]
[1719919019475,2.8967,3452.2,3451.8,0.076881]
[1719919019644,2.8967,3452.2,3451.7,2.3971]
[1719919019966,2.8967,3452.2,3451.8,0.076881]
[1719919020172,2.8967,3452.2,3451.6,2.8972]
[1719919020464,5.2354,3452.2,3451.6,2.8972]
[1719919020641,5.2354,3452.2,3451.7,0.076881]
[1719919021228,2.8967,3452.2,3451.7,0.076881]
[1719919021659,2.8967,3452.2,3451.7,0.9854001]
[1719919021838,2.8967,3452.2,3451.7,1.8094001]
[1719919022583,2.8967,3452.2,3451.8,2.3039]
[1719919022866,2.8967,3452.2,3451.8,2.36183298]
[1719919023165,2.8967,3452.2,3451.9,0.900881]
[1719919023368,0.30156329,3452.4,3452.0,0.41712331]
[1719919023678,0.30156329,3452.4,3451.9,0.900881]
[1719919023679,0.30156329,3452.4,3452.2,2.3039]
[1719919024035,0.30156329,3452.4,3452.3,0.07688645]
[1719919024233,0.30156329,3452.4,3452.2,2.3039]
[1719919024466,0.30156329,3452.4,3452.3,0.07688645]
[1719919024674,0.30156329,3452.4,3452.2,2.3039]
[1719919024964,0.30156329,3452.4,3452.3,0.07688645]
[1719919025367,0.30156329,3452.4,3452.2,2.3039]
[1719919025569,0.30156329,3452.4,3452.3,0.07688645]
[1719919025872,0.30156329,3452.4,3452.3,0.88192764]
[1719919026169,5.2679,3453.2,3452.3,0.95878588]
[1719919026170,2.89612,3452.9,3452.3,0.95878588]
[1719919026373,0.3020709,3452.8,3452.3,0.95878588]
[1719919027782,0.3020709,3452.8,3452.3,4.82124997]
[1719919027981,0.3020709,3452.8,3452.6,3.2987]
[1719919028363,0.3020709,3452.8,3452.7,2.97293673]
[1719919028548,2.89561,3453.5,3452.8,2.89615]
[1719919028748,2.89561,3453.5,3452.9,0.88191449]
[1719919028749,3.19765825,3453.5,3452.9,0.88191449]
[1719919029158,3.19765825,3453.5,3453.0,0.07665673]
[1719919029357,0.30204825,3453.5,3453.0,0.07665673]
[1719919029561,0.30113871,3453.5,3453.1,0.824]
[1719919029961,0.30113871,3453.5,3453.2,0.07665673]
[1719919030185,0.30113871,3453.5,3452.9,3.77801449]
[1719919030658,0.30113871,3453.5,3453.0,0.07665673]
[1719919031697,0.30113871,3453.5,3453.1,0.824]
[1719919031870,0.30113871,3453.5,3453.1,0.90052605]
[1719919032669,0.27313871,3453.5,3453.1,0.90052605]
[1719919035151,0.27313871,3453.5,3453.1,0.07652605]
[1719919037091,3.27313871,3453.5,3453.1,0.07652605]
[1719919037407,4.80448858,3453.5,3453.1,0.07652605]
[1719919037925,2.2814,3453.4,3453.1,0.07652605]
[1719919038286,2.28030609,3453.4,3453.1,0.07652605]
[1719919040711,4.80448858,3453.5,3453.1,0.07652605]
[1719919042322,7.70009858,3453.5,3452.9,2.8961]
[1719919042541,7.70009858,3453.5,3453.2,0.07641715]
[1719919042822,7.70009858,3453.5,3452.9,2.8961]
[1719919043114,6.16874871,3453.5,3452.9,2.8961]
[1719919043302,6.16874871,3453.5,3453.0,0.07641715]
[1719919048989,6.16874871,3453.5,3453.1,2.3276]
[1719919049190,3.27313871,3453.5,3453.1,2.3276]
[1719919049390,0.27313871,3453.5,3453.1,2.3276]
[1719919049590,0.27313871,3453.5,3453.2,0.07641715]
[1719919051595,0.27313871,3453.5,3453.2,1.80242686]
[1719919052033,0.27313871,3453.5,3453.2,0.97842686]
[1719919053297,0.27313871,3453.5,3453.2,3.87423686]
[1719919054631,0.27313871,3453.5,3453.3,5.79145]
[1719919055151,0.27313871,3453.5,3453.4,0.07633006]
[1719919055314,0.27313871,3453.5,3453.4,1.06848404]
[1719919055714,2.8952,3454.0,3453.4,1.06848404]
[1719919055941,3.55,3453.9,3453.4,0.07633006]
[1719919057000,3.55,3453.9,3453.3,2.8957]
[1719919057337,3.55,3453.9,3453.4,0.07633006]
[1719919057704,3.55,3453.9,3453.3,2.8957]
[1719919057935,3.55,3453.9,3453.5,0.07633006]
[1719919058145,3.55,3453.9,3453.3,2.8957]
[1719919058347,3.55,3453.9,3453.6,0.07633006]
[1719919058639,3.55,3453.9,3453.3,2.8957]
[1719919059006,3.55,3453.9,3453.4,0.07633006]
[1719919059415,3.55,3453.9,3453.3,2.8957]
[1719919059608,3.55,3453.9,3453.3,5.79142]
[1719919059801,3.55,3453.9,3453.4,1.26022206]
[1719919064408,3.55,3453.9,3453.4,0.07633006]
[1719919072968,8.73579,3453.9,3453.4,0.07633006]
[1719919074340,2.8954,3453.8,3453.1,2.8959]
[1719919074669,2.8954,3453.8,3453.5,0.07625112]
[1719919074834,2.8954,3453.8,3453.1,2.8959]
[1719919075034,2.8954,3453.8,3453.6,0.07625655]
[1719919075269,2.8954,3453.8,3453.1,2.8959]
[1719919075456,2.8954,3453.8,3453.7,0.07625655]
[1719919075662,2.89547,3453.7,3453.1,2.8959]
[1719919076472,2.89547,3453.7,3452.8,2.3154]
[1719919076473,2.89569,3453.4,3452.8,3.72018]
[1719919077251,2.89569,3453.4,3452.8,4.631332]
[1719919078272,2.89569,3453.4,3452.6,5.39134]
[1719919078273,2.89578,3453.3,3452.6,2.89634]
[1719919078570,0.55,3453.2,3452.5,2.89643]
[1719919078776,0.55,3453.2,3452.6,0.824]
[1719919079682,0.55,3453.2,3452.6,3.72034]
[1719919079858,0.55,3453.2,3452.6,4.382021]
[1719919085113,0.55,3453.2,3452.7,2.89628]
[1719919086202,0.55,3453.2,3452.8,0.824]
[1719919086407,0.55,3453.3,3452.8,0.88191732]
[1719919086830,0.55,3453.3,3452.8,3.77809732]
[1719919087002,0.55,3453.3,3452.8,4.51170915]
[1719919088842,0.55,3453.3,3452.9,0.07634639]
[1719919089539,0.55,3453.3,3452.9,0.07541305]
[1719919100528,3.89477,3454.5,3453.1,2.8959]
[1719919100529,5.19466,3453.8,3453.1,2.8959]
[1719919100731,0.901866,3453.7,3453.1,2.8959]
[1719919100970,0.55,3453.6,3453.2,0.07540217]
[1719919108277,0.55,3453.6,3453.0,2.89596]
[1719919108485,0.55,3453.6,3453.3,0.07288876]
[1719919108770,0.55,3453.6,3453.0,2.89596]
[1719919108960,1.8865966,3453.6,3453.4,0.07288876]
[1719919109276,1.8865966,3453.6,3453.0,2.89596]
[1719919109277,4.8865966,3453.6,3453.5,0.07288876]
[1719919109642,4.8865966,3453.6,3453.0,2.89596]
[1719919109844,4.8865966,3453.6,3453.5,0.07288876]
[1719919110146,4.8865966,3453.6,3453.0,2.89596]
[1719919110382,4.8865966,3453.6,3453.5,0.07288876]
[1719919110679,4.8865966,3453.6,3453.1,0.07288876]
[1719919114892,1.09053466,3453.5,3453.1,0.07288876]
[1719919116576,1.09053466,3453.5,3453.1,0.02288876]
[1719919116781,1.09053466,3453.5,3453.1,0.07118126]
[1719919118370,3.55,3453.6,3453.1,0.07118126]
[1719919119661,3.55,3453.6,3453.0,2.89596]
[1719919120285,3.55,3453.6,3453.1,0.06951459]
[1719919122774,3.55,3453.6,3453.1,0.06784793]
[1719919127972,3.55,3453.6,3453.1,0.01784793]
[1719919128169,4.796426,3453.6,3453.1,0.06615676]
[1719919129377,7.691956,3453.6,3453.1,0.06615676]
[1719919130200,2.89563,3453.5,3453.1,0.06615676]
[1719919130397,2.89563,3453.5,3453.1,0.04830883]
[1719919130398,3.0024,3453.4,3453.1,0.04830883]
[1719919130599,2.89578,3453.3,3452.6,5.1646]
[1719919130911,2.89578,3453.3,3453.2,0.06615676]
[1719919131102,3.44578,3453.3,3452.6,5.1646]
[1719919131280,0.55,3453.2,3452.6,5.1646]
[1719919133024,3.44586,3453.2,3452.7,0.824]
[1719919135535,3.44586,3453.2,3452.8,0.06449009]
[1719919135890,3.44586,3453.2,3452.7,0.824]
[1719919136090,3.44586,3453.2,3452.9,0.06450099]
[1719919136325,3.44586,3453.2,3452.7,0.824]
[1719919136486,3.44586,3453.2,3453.0,0.06450099]
[1719919136685,3.44586,3453.2,3452.7,0.824]
[1719919137212,3.44586,3453.2,3452.8,0.06450099]
[1719919137413,3.44586,3453.2,3452.7,0.824]
[1719919137608,3.44586,3453.2,3452.9,0.06450099]
[1719919137819,3.44586,3453.2,3452.7,0.824]
[1719919137993,3.44586,3453.2,3453.0,0.06450099]
[1719919138301,3.44586,3453.2,3452.7,0.824]
[1719919138502,3.44586,3453.2,3453.1,0.06450099]
[1719919138704,3.44586,3453.2,3452.7,0.824]
[1719919139218,3.44586,3453.2,3452.8,0.06450099]
[1719919139433,3.44586,3453.2,3452.7,0.824]
[1719919139601,3.44586,3453.2,3452.9,0.06450099]
[1719919139932,3.44586,3453.2,3452.7,0.824]
[1719919140120,3.44586,3453.2,3453.0,0.06450099]
[1719919140293,3.44586,3453.2,3452.7,0.824]
[1719919140785,3.44586,3453.2,3452.8,0.06450099]
[1719919140989,3.44586,3453.2,3452.7,0.824]
[1719919141226,3.44586,3453.2,3452.8,0.06450099]
[1719919141386,3.44586,3453.2,3452.7,0.824]
[1719919141591,3.44586,3453.2,3452.8,0.06450099]
[1719919141791,3.44586,3453.2,3452.7,0.824]
[1719919142089,3.44586,3453.2,3452.8,0.06450099]
[1719919142291,3.44586,3453.2,3452.7,0.824]
[1719919142484,3.44586,3453.2,3452.9,0.06450099]
[1719919142687,3.44586,3453.2,3452.8,0.824]
[1719919142916,3.44586,3453.2,3453.0,0.06450099]
[1719919143134,3.44586,3453.2,3452.8,0.824]
[1719919143342,3.44586,3453.2,3453.1,0.06450099]
[1719919143533,3.44586,3453.2,3452.8,0.824]
[1719919143738,3.44586,3453.2,3453.1,0.06450099]
[1719919143901,3.44586,3453.2,3452.8,0.824]
[1719919144102,3.44586,3453.2,3453.1,0.06450099]
[1719919144358,3.44586,3453.2,3452.8,0.824]
[1719919144524,3.44586,3453.2,3453.1,0.06450099]
[1719919144710,3.44586,3453.2,3452.8,0.824]
[1719919144912,3.44586,3453.2,3453.1,0.06450099]
[1719919145145,4.325257,3453.2,3452.6,5.1646]
[1719919145300,3.44586,3453.2,3453.1,0.06450099]
[1719919145507,3.44586,3453.2,3452.6,5.1646]
[1719919145709,3.44586,3453.2,3453.1,0.06450099]
[1719919146235,3.44586,3453.2,3452.7,0.824]
[1719919146415,3.44586,3453.2,3453.1,0.06450099]
[1719919146788,4.325257,3453.2,3452.7,0.824]
[1719919147043,3.44586,3453.2,3452.6,5.1646]
[1719919147250,3.44586,3453.2,3452.8,0.06450369]
[1719919147556,3.44586,3453.2,3452.6,5.9886]
[1719919147703,3.44586,3453.2,3452.9,0.06450369]
[1719919147907,3.44586,3453.2,3452.6,5.9886]
[1719919148134,3.44586,3453.2,3453.0,0.06450369]
[1719919148329,3.44586,3453.2,3452.6,5.9886]
[1719919148542,3.44586,3453.2,3453.1,0.06450369]
[1719919148748,3.44586,3453.2,3452.6,5.9886]
[1719919148952,3.44586,3453.2,3453.1,0.06450369]
[1719919149157,4.325257,3453.2,3452.6,5.9886]
[1719919149460,3.44586,3453.2,3452.6,5.9886]
[1719919149755,3.44586,3453.2,3452.7,0.06450369]
[1719919162267,3.44586,3453.2,3452.7,2.96078369]
[1719919180353,5.33366,3453.1,3452.7,0.06450369]
[1719919180598,2.8962,3452.8,3452.7,0.06450369]
[1719919180859,2.4377,3452.5,3451.9,2.89695]
[1719919181071,2.4377,3452.5,3451.9,3.72095]
[1719919181256,0.55,3452.4,3451.9,3.72095]
[1719919181681,0.55,3452.4,3451.9,2.89695]
[1719919181863,0.55,3452.4,3451.9,3.72095]
[1719919184305,0.55,3452.4,3451.9,2.89695]
[1719919184504,0.55,3452.4,3451.9,3.72095]
[1719919186382,0.55,3452.4,3451.9,2.89695]
[1719919190115,0.55,3452.4,3451.9,3.72095]
[1719919193951,0.55,3452.4,3452.0,0.06259814]
[1719919194154,2.4092,3452.8,3452.1,0.88193171]
[1719919194384,2.4092,3452.8,3452.1,3.72073]
[1719919194385,0.55,3452.7,3452.1,3.72073]
[1719919194658,3.55,3452.7,3452.1,3.7786587]
[1719919194858,3.55,3452.7,3452.2,0.06264987]
[1719919196347,3.55,3452.7,3452.2,2.95933987]
[1719919207479,5.466147,3452.7,3452.2,2.95933987]
[1719919210368,8.362437,3452.7,3452.2,0.06264987]
[1719919210883,8.362437,3452.7,3452.3,0.06263624]
[1719919211194,2.4033,3452.5,3452.0,2.89679]
[1719919211353,2.4033,3452.5,3451.8,2.89697]
[1719919211354,0.55,3452.4,3451.8,2.89697]
[1719919211554,0.55,3452.4,3451.4,2.3389]
[1719919211555,3.44655,3452.4,3451.4,2.3389]
[1719919211754,3.44655,3452.4,3451.6,0.824]
[1719919212088,4.92259037,3452.4,3451.5,0.824]
[1719919212495,4.92259037,3452.4,3451.7,3.72111]
[1719919212496,7.81920037,3452.4,3451.7,3.72111]
[1719919212858,2.89662,3452.3,3451.7,3.72111]
[1719919213478,2.89703,3451.8,3451.2,2.89753]
[1719919214289,2.89684,3452.1,3451.2,2.95547369]
[1719919214456,2.897,3451.9,3451.2,2.95547369]
[1719919214658,3.44704,3451.8,3451.2,2.95547369]
[1719919215279,3.44704,3451.8,3451.3,0.824]
[1719919215483,0.55,3451.8,3451.3,0.824]
[1719919215683,2.89696,3451.9,3451.3,0.824]
[1719919215879,0.55,3451.8,3451.3,0.824]
[1719919221798,0.55,3451.8,3451.3,3.72145]
[1719919224038,0.55,3451.8,3451.4,0.06056754]
[1719919226002,3.44706,3451.8,3451.4,0.06056754]
[1719919226203,4.391062,3451.8,3451.4,0.06056754]